[Event "*** Titled Tuesday Blitz"]
[Site "Chess.com"]
[Date "2019.10.01"]
[Round "3"]
[White "WPWPWP-2015"]
[Black "ChessLover0108"]
[Result "0-1"]
[WhiteElo "2471"]
[BlackElo "2728"]
[TimeControl "180+2"]
[EndTime "13:37:02 PDT"]
[Termination "ChessLover0108 won by resignation"]

1. e4 {[%clk 0:03:01.9]} 1... Nf6 {[%clk 0:02:59.4]} 2. Nc3 {[%clk 0:03:02.2]}
2... d5 {[%clk 0:03:00.1]} 3. e5 {[%clk 0:03:01.8]} 3... d4 {[%clk 0:03:01.6]}
4. exf6 {[%clk 0:02:59.4]} 4... dxc3 {[%clk 0:03:02.7]} 5. bxc3 {[%clk 0:03:00]}
5... exf6 {[%clk 0:03:03.3]} 6. d4 {[%clk 0:03:01.3]} 6... Bd6 {[%clk
0:03:04.2]} 7. Nf3 {[%clk 0:03:00.8]} 7... O-O {[%clk 0:03:05.3]} 8. Be3 {[%clk
0:03:00.7]} 8... c5 {[%clk 0:03:02.3]} 9. Bd3 {[%clk 0:02:59.5]} 9... Nc6 {[%clk
0:03:01.3]} 10. h3 {[%clk 0:02:59.8]} 10... Re8 {[%clk 0:03:01.1]} 11. O-O
{[%clk 0:03:00]} 11... b6 {[%clk 0:02:57.8]} 12. Bb5 {[%clk 0:02:40.6]} 12...
Bd7 {[%clk 0:02:50.2]} 13. Rb1 {[%clk 0:02:24.3]} 13... Qc7 {[%clk 0:02:48.5]}
14. Re1 {[%clk 0:02:16.2]} 14... Rad8 {[%clk 0:02:37.6]} 15. a4 {[%clk 0:02:12]}
15... Na5 {[%clk 0:02:31.7]} 16. Nd2 {[%clk 0:02:04.7]} 16... Bxb5 {[%clk
0:02:26.2]} 17. axb5 {[%clk 0:02:05.1]} 17... cxd4 {[%clk 0:02:20.3]} 18. cxd4
{[%clk 0:02:05.6]} 18... Rc8 {[%clk 0:02:15.9]} 19. c4 {[%clk 0:00:47.2]} 19...
Nxc4 {[%clk 0:02:14.9]} 20. Nxc4 {[%clk 0:00:45.3]} 20... Qxc4 {[%clk
0:02:15.3]} 21. Qf3 {[%clk 0:00:45.9]} 21... h6 {[%clk 0:01:59.2]} 22. g3 {[%clk
0:00:44.7]} 22... Qd3 {[%clk 0:01:56.9]} 23. Red1 {[%clk 0:00:41.9]} 23... Qg6
{[%clk 0:01:47]} 24. Rbc1 {[%clk 0:00:36.6]} 24... Rxc1 {[%clk 0:01:38.1]} 25.
Rxc1 {[%clk 0:00:37.2]} 25... Qd3 {[%clk 0:01:35.2]} 26. Qc6 {[%clk 0:00:28.7]}
26... Rxe3 {[%clk 0:01:17.1]} 27. Qxd6 {[%clk 0:00:21.7]} 27... Re2 {[%clk
0:01:11.9]} 28. Qf4 {[%clk 0:00:08.9]} 28... Qxb5 {[%clk 0:00:51.3]} 29. Kg2
{[%clk 0:00:06.5]} 29... Qd5+ {[%clk 0:00:48.1]} 30. Qf3 {[%clk 0:00:07.1]}
30... Re4 {[%clk 0:00:40]} 31. Re1 {[%clk 0:00:05.8]} 31... f5 {[%clk
0:00:39.7]} 32. Rd1 {[%clk 0:00:06.3]} 32... g6 {[%clk 0:00:39.5]} 33. h4 {[%clk
0:00:07.1]} 33... h5 {[%clk 0:00:40.3]} 34. Kh2 {[%clk 0:00:07.7]} 34... Rxh4+
{[%clk 0:00:39.9]} 35. Kg2 {[%clk 0:00:07.1]} 35... Rh2+ {[%clk 0:00:40.8]} 36.
Kxh2 {[%clk 0:00:08.2]} 36... Qxf3 {[%clk 0:00:42.7]} 0-1

[Event "*** Titled Tuesday Blitz"]
[Site "Chess.com"]
[Date "2019.10.01"]
[Round "3"]
[White "Quaritch79"]
[Black "grzechu96"]
[Result "0-1"]
[WhiteElo "2298"]
[BlackElo "2588"]
[TimeControl "180+2"]
[EndTime "13:37:04 PDT"]
[Termination "grzechu96 won by checkmate"]

1. e4 {[%clk 0:03:01.6]} 1... c5 {[%clk 0:03:00.8]} 2. Nf3 {[%clk 0:03:02.2]}
2... d6 {[%clk 0:03:02]} 3. d4 {[%clk 0:03:03.4]} 3... cxd4 {[%clk 0:03:03.9]}
4. Nxd4 {[%clk 0:03:04.8]} 4... a6 {[%clk 0:03:05]} 5. Nc3 {[%clk 0:03:06.1]}
5... e6 {[%clk 0:03:06]} 6. f4 {[%clk 0:03:07.3]} 6... b5 {[%clk 0:03:06.5]} 7.
Be3 {[%clk 0:03:08.4]} 7... Bb7 {[%clk 0:03:07.8]} 8. a3 {[%clk 0:03:08.5]} 8...
Nd7 {[%clk 0:03:07.6]} 9. Qf3 {[%clk 0:02:54.9]} 9... Ngf6 {[%clk 0:03:07.7]}
10. Bd3 {[%clk 0:02:54]} 10... Rc8 {[%clk 0:03:08.5]} 11. O-O {[%clk 0:02:54.6]}
11... Be7 {[%clk 0:03:09.1]} 12. g4 {[%clk 0:02:53.3]} 12... Rxc3 {[%clk
0:03:10]} 13. bxc3 {[%clk 0:02:54.1]} 13... Nc5 {[%clk 0:03:11.4]} 14. c4 {[%clk
0:02:44.7]} 14... Nfxe4 {[%clk 0:02:58.7]} 15. cxb5 {[%clk 0:02:36.9]} 15... Nd2
{[%clk 0:02:57.3]} 16. Qe2 {[%clk 0:02:23.3]} 16... Nxf1 {[%clk 0:02:58.4]} 17.
Rxf1 {[%clk 0:02:23.9]} 17... O-O {[%clk 0:02:57.1]} 18. bxa6 {[%clk 0:02:19.7]}
18... Ba8 {[%clk 0:02:58.3]} 19. Bb5 {[%clk 0:02:15.2]} 19... Qc7 {[%clk
0:02:53]} 20. c4 {[%clk 0:02:13.4]} 20... Rc8 {[%clk 0:02:38.3]} 21. g5 {[%clk
0:01:59.9]} 21... Bf8 {[%clk 0:02:33.5]} 22. f5 {[%clk 0:01:56.7]} 22... e5
{[%clk 0:02:33.4]} 23. Nf3 {[%clk 0:01:57]} 23... Ne4 {[%clk 0:02:12]} 24. g6
{[%clk 0:01:53.4]} 24... fxg6 {[%clk 0:01:51.8]} 25. fxg6 {[%clk 0:01:54.3]}
25... hxg6 {[%clk 0:01:53.2]} 26. Ng5 {[%clk 0:01:42]} 26... Nxg5 {[%clk
0:01:30.9]} 27. Bxg5 {[%clk 0:01:42.4]} 27... Be7 {[%clk 0:01:32.6]} 28. Bxe7
{[%clk 0:01:42.1]} 28... Qxe7 {[%clk 0:01:34.5]} 29. Qf2 {[%clk 0:01:37.9]}
29... Kh7 {[%clk 0:01:21.7]} 30. Qg3 {[%clk 0:01:36.8]} 30... Rc5 {[%clk
0:00:47.7]} 31. Qh3+ {[%clk 0:01:29.4]} 31... Kg8 {[%clk 0:00:48.9]} 32. Qg3
{[%clk 0:01:22.9]} 32... e4 {[%clk 0:00:45.5]} 33. h4 {[%clk 0:01:19.9]} 33...
e3 {[%clk 0:00:46.9]} 34. Qxg6 {[%clk 0:01:14]} 34... e2 {[%clk 0:00:42.1]} 35.
Re1 {[%clk 0:01:15.1]} 35... Qe3+ {[%clk 0:00:42.6]} 36. Kh2 {[%clk 0:01:12]}
36... Qf2+ {[%clk 0:00:28.7]} 37. Kh3 {[%clk 0:01:13.5]} 37... Re5 {[%clk
0:00:23.3]} 38. Qxd6 {[%clk 0:00:40.1]} 38... Qg2# {[%clk 0:00:23.4]} 0-1

[Event "*** Titled Tuesday Blitz"]
[Site "Chess.com"]
[Date "2019.10.01"]
[Round "3"]
[White "Hikaru"]
[Black "kuli4ik"]
[Result "1-0"]
[WhiteElo "3173"]
[BlackElo "2778"]
[TimeControl "180+2"]
[EndTime "13:37:11 PDT"]
[Termination "Hikaru won by resignation"]

1. e4 {[%clk 0:03:01.9]} 1... e6 {[%clk 0:02:57]} 2. f4 {[%clk 0:03:01.6]} 2...
b6 {[%clk 0:02:56.8]} 3. Nf3 {[%clk 0:02:49.3]} 3... Bb7 {[%clk 0:02:56.7]} 4.
Nc3 {[%clk 0:02:50.1]} 4... Bb4 {[%clk 0:02:56.7]} 5. Bd3 {[%clk 0:02:48.7]}
5... Na6 {[%clk 0:02:56.2]} 6. Na4 {[%clk 0:02:39.5]} 6... Nf6 {[%clk
0:02:49.6]} 7. c3 {[%clk 0:02:36.2]} 7... Be7 {[%clk 0:02:40.1]} 8. Qe2 {[%clk
0:02:33.7]} 8... Qc8 {[%clk 0:02:38.9]} 9. Bc2 {[%clk 0:02:29.4]} 9... c5 {[%clk
0:02:35.6]} 10. b3 {[%clk 0:02:25.2]} 10... Nc7 {[%clk 0:02:10.5]} 11. O-O
{[%clk 0:02:15.2]} 11... Bc6 {[%clk 0:01:50.4]} 12. Nb2 {[%clk 0:02:04.5]} 12...
Qa6 {[%clk 0:01:49.7]} 13. c4 {[%clk 0:02:01.7]} 13... Qb7 {[%clk 0:01:42.4]}
14. d3 {[%clk 0:02:01.5]} 14... d6 {[%clk 0:01:41.2]} 15. Nd1 {[%clk 0:01:59.2]}
15... b5 {[%clk 0:01:36.7]} 16. Nf2 {[%clk 0:02:00.3]} 16... Nd7 {[%clk
0:01:31.3]} 17. Bb2 {[%clk 0:01:58.5]} 17... Bf6 {[%clk 0:01:31.9]} 18. Bxf6
{[%clk 0:01:57.5]} 18... gxf6 {[%clk 0:01:32.5]} 19. d4 {[%clk 0:01:54.6]} 19...
cxd4 {[%clk 0:01:24.7]} 20. Nxd4 {[%clk 0:01:56.5]} 20... bxc4 {[%clk
0:01:25.5]} 21. Qxc4 {[%clk 0:01:54.1]} 21... Nb8 {[%clk 0:01:10.2]} 22. Rac1
{[%clk 0:01:50.3]} 22... d5 {[%clk 0:01:08.5]} 23. Qc3 {[%clk 0:01:49.1]} 23...
Nb5 {[%clk 0:01:06.6]} 24. Nxb5 {[%clk 0:01:49.6]} 24... Bxb5 {[%clk 0:01:07.3]}
25. Rfe1 {[%clk 0:01:48]} 25... Nd7 {[%clk 0:01:00.8]} 26. exd5 {[%clk 0:01:49]}
26... Rc8 {[%clk 0:01:00.7]} 27. Qd2 {[%clk 0:01:48.3]} 27... Rg8 {[%clk
0:00:58.6]} 28. Bxh7 {[%clk 0:01:47.8]} 28... Rg7 {[%clk 0:00:59.3]} 29. Rxc8+
{[%clk 0:01:26.2]} 29... Qxc8 {[%clk 0:01:01.2]} 30. dxe6 {[%clk 0:01:27.9]}
30... fxe6 {[%clk 0:01:01]} 31. Bf5 {[%clk 0:01:24.9]} 31... Qc5 {[%clk
0:00:56]} 32. Bxe6 {[%clk 0:01:21.6]} 32... Kf8 {[%clk 0:00:54.5]} 33. Bd5
{[%clk 0:01:11.7]} 33... Nb6 {[%clk 0:00:46.6]} 34. Bf3 {[%clk 0:01:12.6]} 34...
Rd7 {[%clk 0:00:47.7]} 35. Qe3 {[%clk 0:01:13.2]} 35... Qxe3 {[%clk 0:00:47.6]}
36. Rxe3 {[%clk 0:01:14.1]} 36... Rd2 {[%clk 0:00:49.5]} 37. a4 {[%clk
0:01:15.3]} 37... Bd7 {[%clk 0:00:45.5]} 38. a5 {[%clk 0:01:13.2]} 38... Nc8
{[%clk 0:00:45.4]} 39. Rd3 {[%clk 0:01:14]} 39... Rxd3 {[%clk 0:00:45.8]} 40.
Nxd3 {[%clk 0:01:15.1]} 40... Nd6 {[%clk 0:00:45.9]} 41. g4 {[%clk 0:01:14.9]}
41... Bb5 {[%clk 0:00:45.8]} 42. Nc5 {[%clk 0:01:15.1]} 42... Ke7 {[%clk
0:00:45.6]} 43. h4 {[%clk 0:01:16.1]} 43... Be8 {[%clk 0:00:43.6]} 44. h5 {[%clk
0:01:13.3]} 44... Nb5 {[%clk 0:00:42.2]} 45. h6 {[%clk 0:01:10.4]} 45... Kf7
{[%clk 0:00:43.4]} 46. Be4 {[%clk 0:01:09.9]} 46... Nd4 {[%clk 0:00:41.3]} 47.
Kf2 {[%clk 0:01:08.1]} 47... Kg8 {[%clk 0:00:41.5]} 48. g5 {[%clk 0:01:09]}
48... fxg5 {[%clk 0:00:41.5]} 49. fxg5 {[%clk 0:01:10.9]} 49... Bc6 {[%clk
0:00:40.5]} 50. g6 {[%clk 0:01:09.5]} 50... Bxe4 {[%clk 0:00:40.8]} 51. Nxe4
{[%clk 0:01:10.4]} 1-0

[Event "*** Titled Tuesday Blitz"]
[Site "Chess.com"]
[Date "2019.10.01"]
[Round "3"]
[White "Taron_Shagbazyan"]
[Black "csati17"]
[Result "1-0"]
[WhiteElo "2773"]
[BlackElo "2479"]
[TimeControl "180+2"]
[EndTime "13:37:11 PDT"]
[Termination "Taron_Shagbazyan won by resignation"]

1. d4 {[%clk 0:03:01.9]} 1... Nf6 {[%clk 0:03:00.9]} 2. c4 {[%clk 0:03:03.2]}
2... e6 {[%clk 0:03:02]} 3. Nc3 {[%clk 0:03:04.4]} 3... Bb4 {[%clk 0:02:59.5]}
4. e3 {[%clk 0:03:05.4]} 4... O-O {[%clk 0:02:59.8]} 5. Bd3 {[%clk 0:03:06]}
5... c5 {[%clk 0:02:59.5]} 6. Nf3 {[%clk 0:03:04.5]} 6... d5 {[%clk 0:02:57.5]}
7. O-O {[%clk 0:03:05.2]} 7... cxd4 {[%clk 0:02:56.6]} 8. exd4 {[%clk
0:03:01.7]} 8... Nc6 {[%clk 0:02:55.7]} 9. c5 {[%clk 0:02:55.2]} 9... Ba5 {[%clk
0:02:42.6]} 10. a3 {[%clk 0:02:55.2]} 10... Bc7 {[%clk 0:02:43.7]} 11. b4 {[%clk
0:02:55.5]} 11... a6 {[%clk 0:02:45.2]} 12. Rb1 {[%clk 0:02:54.8]} 12... e5
{[%clk 0:02:45.6]} 13. dxe5 {[%clk 0:02:46.3]} 13... Nxe5 {[%clk 0:02:47.5]} 14.
Be2 {[%clk 0:02:45.2]} 14... Bf5 {[%clk 0:02:37]} 15. Rb3 {[%clk 0:02:42.8]}
15... Nfg4 {[%clk 0:02:12]} 16. h3 {[%clk 0:02:35.4]} 16... Nxf3+ {[%clk
0:02:08.6]} 17. Bxf3 {[%clk 0:02:34.8]} 17... Nh2 {[%clk 0:02:09.7]} 18. Nxd5
{[%clk 0:02:17.8]} 18... Nxf1 {[%clk 0:02:00]} 19. Qxf1 {[%clk 0:02:13]} 19...
Be5 {[%clk 0:01:47.7]} 20. Re3 {[%clk 0:01:58.9]} 20... Re8 {[%clk 0:01:38.4]}
21. Qe2 {[%clk 0:01:51.2]} 21... Qg5 {[%clk 0:01:21.8]} 22. Bd2 {[%clk
0:01:40.6]} 22... Bd7 {[%clk 0:01:11.5]} 23. Re4 {[%clk 0:01:28.9]} 23... Bb5
{[%clk 0:01:02.6]} 24. Bxg5 {[%clk 0:01:17.2]} 24... Bxe2 {[%clk 0:01:00.3]} 25.
Rxe2 {[%clk 0:01:14.3]} 25... f6 {[%clk 0:00:50.1]} 26. Be3 {[%clk 0:01:11.9]}
26... Rad8 {[%clk 0:00:47.6]} 27. g4 {[%clk 0:01:13.1]} 27... Kf7 {[%clk
0:00:30.2]} 28. Kg2 {[%clk 0:01:03.7]} 28... h5 {[%clk 0:00:27]} 29. gxh5 {[%clk
0:01:02.9]} 29... f5 {[%clk 0:00:19.2]} 30. Bg5 {[%clk 0:01:02.2]} 30... Rd7
{[%clk 0:00:20.1]} 31. Nb6 {[%clk 0:01:00.4]} 31... Rd3 {[%clk 0:00:19.3]} 32.
Bxb7 {[%clk 0:00:58.5]} 32... g6 {[%clk 0:00:19]} 33. Bd5+ {[%clk 0:00:56.3]}
33... Kg7 {[%clk 0:00:20]} 34. h6+ {[%clk 0:00:57.5]} 34... Kh7 {[%clk
0:00:21.5]} 35. f4 {[%clk 0:00:59]} 35... Bxf4 {[%clk 0:00:14.7]} 36. Rxe8
{[%clk 0:00:59.5]} 36... Bxg5 {[%clk 0:00:16.1]} 37. c6 {[%clk 0:00:58.5]} 37...
Rd2+ {[%clk 0:00:16.7]} 38. Kf3 {[%clk 0:00:58.4]} 38... Rc2 {[%clk 0:00:12.1]}
39. Nc4 {[%clk 0:00:57.4]} 39... Bh4 {[%clk 0:00:11.2]} 40. c7 {[%clk
0:00:53.7]} 1-0

[Event "*** Titled Tuesday Blitz"]
[Site "Chess.com"]
[Date "2019.10.01"]
[Round "3"]
[White "harvsp123"]
[Black "Orange_Ghost"]
[Result "0-1"]
[WhiteElo "2477"]
[BlackElo "2766"]
[TimeControl "180+2"]
[EndTime "13:37:15 PDT"]
[Termination "Orange_Ghost won by resignation"]

1. Nf3 {[%clk 0:03:01.9]} 1... Nf6 {[%clk 0:03:00.8]} 2. c4 {[%clk 0:02:55.6]}
2... c5 {[%clk 0:03:01]} 3. Nc3 {[%clk 0:02:55.7]} 3... d5 {[%clk 0:03:01.8]} 4.
cxd5 {[%clk 0:02:56.8]} 4... Nxd5 {[%clk 0:03:03.7]} 5. e3 {[%clk 0:02:45.1]}
5... Nc6 {[%clk 0:03:01.7]} 6. Bb5 {[%clk 0:02:44.9]} 6... Nxc3 {[%clk
0:03:00.7]} 7. dxc3 {[%clk 0:02:41.9]} 7... Qc7 {[%clk 0:02:47.3]} 8. e4 {[%clk
0:02:41]} 8... e6 {[%clk 0:02:40]} 9. Be3 {[%clk 0:02:38.7]} 9... Bd6 {[%clk
0:02:40.1]} 10. Nd2 {[%clk 0:02:38.7]} 10... O-O {[%clk 0:02:19.1]} 11. Qg4
{[%clk 0:02:32.4]} 11... f5 {[%clk 0:01:49.1]} 12. exf5 {[%clk 0:02:26.5]} 12...
Ne5 {[%clk 0:01:47.6]} 13. Qd1 {[%clk 0:02:07.5]} 13... exf5 {[%clk 0:01:31.7]}
14. Nc4 {[%clk 0:02:06.1]} 14... Nxc4 {[%clk 0:01:21.6]} 15. Bxc4+ {[%clk
0:02:08]} 15... Kh8 {[%clk 0:01:23.5]} 16. Qd5 {[%clk 0:01:42.3]} 16... f4
{[%clk 0:01:15.1]} 17. O-O-O {[%clk 0:01:05.1]} 17... Be7 {[%clk 0:00:51.4]} 18.
Bd2 {[%clk 0:01:02.5]} 18... Bf5 {[%clk 0:00:48.6]} 19. Qf3 {[%clk 0:00:46.2]}
19... Bg5 {[%clk 0:00:37.7]} 20. h4 {[%clk 0:00:46.6]} 20... Bh6 {[%clk
0:00:38.7]} 21. Rhe1 {[%clk 0:00:36.3]} 21... Rad8 {[%clk 0:00:37.1]} 22. Bd5
{[%clk 0:00:28.4]} 22... Qa5 {[%clk 0:00:32.8]} 23. Re5 {[%clk 0:00:23.8]} 23...
Qa4 {[%clk 0:00:26.3]} 24. Bb3 {[%clk 0:00:22.9]} 24... Qa6 {[%clk 0:00:19.2]}
25. g4 {[%clk 0:00:16.6]} 25... fxg3 {[%clk 0:00:17.3]} 26. Bxh6 {[%clk
0:00:15]} 26... Qxh6+ {[%clk 0:00:15.7]} 27. Qe3 {[%clk 0:00:13.6]} 27... Rxd1+
{[%clk 0:00:11.4]} 28. Kxd1 {[%clk 0:00:13.3]} 28... Bg4+ {[%clk 0:00:10]} 29.
Kc2 {[%clk 0:00:11.5]} 29... gxf2 {[%clk 0:00:08.5]} 30. Re8 {[%clk 0:00:11.5]}
30... Qg6+ {[%clk 0:00:07]} 31. Kd2 {[%clk 0:00:11.7]} 31... Qxe8 {[%clk
0:00:07.9]} 32. Qxf2 {[%clk 0:00:11.9]} 32... Rxf2+ {[%clk 0:00:07.7]} 0-1

[Event "*** Titled Tuesday Blitz"]
[Site "Chess.com"]
[Date "2019.10.01"]
[Round "3"]
[White "Alliswell998"]
[Black "I-Mesquita"]
[Result "0-1"]
[WhiteElo "2443"]
[BlackElo "2643"]
[TimeControl "180+2"]
[EndTime "13:37:21 PDT"]
[Termination "I-Mesquita won by checkmate"]

1. e4 {[%clk 0:03:01.9]} 1... e5 {[%clk 0:02:56.4]} 2. Nf3 {[%clk 0:03:02.7]}
2... Nc6 {[%clk 0:02:56.9]} 3. Bc4 {[%clk 0:03:03.6]} 3... Bc5 {[%clk
0:02:56.9]} 4. c3 {[%clk 0:03:04.4]} 4... Nf6 {[%clk 0:02:57.3]} 5. d3 {[%clk
0:03:05.8]} 5... d6 {[%clk 0:02:57.1]} 6. Bb3 {[%clk 0:03:05.9]} 6... a5 {[%clk
0:02:53.9]} 7. h3 {[%clk 0:03:06]} 7... O-O {[%clk 0:02:51.2]} 8. Nbd2 {[%clk
0:03:03.7]} 8... Kh8 {[%clk 0:02:49.5]} 9. Nf1 {[%clk 0:03:02.4]} 9... Nh5
{[%clk 0:02:43.9]} 10. Be3 {[%clk 0:02:59]} 10... f5 {[%clk 0:02:26.1]} 11. Ng5
{[%clk 0:02:53.9]} 11... Qe8 {[%clk 0:01:56.8]} 12. Bxc5 {[%clk 0:02:50.6]}
12... dxc5 {[%clk 0:01:57.1]} 13. Nf7+ {[%clk 0:02:18.4]} 13... Rxf7 {[%clk
0:01:57.1]} 14. Qxh5 {[%clk 0:02:19.6]} 14... Rf8 {[%clk 0:01:57]} 15. Qxe8
{[%clk 0:02:17.6]} 15... Rxe8 {[%clk 0:01:58.4]} 16. Ne3 {[%clk 0:02:16.6]}
16... a4 {[%clk 0:01:53.8]} 17. Bc2 {[%clk 0:02:11.6]} 17... a3 {[%clk
0:01:51.6]} 18. b3 {[%clk 0:02:11.1]} 18... f4 {[%clk 0:01:14.5]} 19. Nd5 {[%clk
0:02:10]} 19... Rd8 {[%clk 0:01:15.8]} 20. Nxc7 {[%clk 0:02:07.3]} 20... Ra7
{[%clk 0:01:14.4]} 21. O-O {[%clk 0:02:03.1]} 21... b6 {[%clk 0:01:15.3]} 22.
Nd5 {[%clk 0:02:02.4]} 22... b5 {[%clk 0:01:10.3]} 23. Rad1 {[%clk 0:01:54.7]}
23... b4 {[%clk 0:01:00.2]} 24. Rd2 {[%clk 0:01:51.3]} 24... bxc3 {[%clk
0:00:59.3]} 25. Nxc3 {[%clk 0:01:51.6]} 25... f3 {[%clk 0:00:55.7]} 26. Bd1
{[%clk 0:01:46.1]} 26... fxg2 {[%clk 0:00:53.5]} 27. Kxg2 {[%clk 0:01:48]} 27...
Nb4 {[%clk 0:00:46.9]} 28. Be2 {[%clk 0:01:43]} 28... Ba6 {[%clk 0:00:46.7]} 29.
Rfd1 {[%clk 0:01:39.5]} 29... Rad7 {[%clk 0:00:47.6]} 30. Nb1 {[%clk 0:01:37.8]}
30... Bxd3 {[%clk 0:00:46.7]} 31. Bxd3 {[%clk 0:01:36]} 31... Nxd3 {[%clk
0:00:46.5]} 32. Kg3 {[%clk 0:01:29.7]} 32... Rd4 {[%clk 0:00:45]} 33. Nxa3
{[%clk 0:01:28.3]} 33... R8d6 {[%clk 0:00:40.7]} 34. Nc4 {[%clk 0:01:24.4]}
34... Rg6+ {[%clk 0:00:39]} 35. Kh2 {[%clk 0:01:24.5]} 35... Nf4 {[%clk
0:00:30.7]} 36. f3 {[%clk 0:01:18.5]} 36... Rh6 {[%clk 0:00:26.5]} 37. Rxd4
{[%clk 0:01:17.7]} 37... exd4 {[%clk 0:00:19.6]} 38. Kg3 {[%clk 0:01:15.4]}
38... g5 {[%clk 0:00:21]} 39. Kg4 {[%clk 0:01:14.3]} 39... Ne6 {[%clk
0:00:16.5]} 40. Kf5 {[%clk 0:01:09.1]} 40... Kg7 {[%clk 0:00:17.9]} 41. a4
{[%clk 0:01:05.9]} 41... Rf6+ {[%clk 0:00:17.9]} 42. Ke5 {[%clk 0:01:06.5]}
42... Nf4 {[%clk 0:00:13.6]} 43. a5 {[%clk 0:00:55.8]} 43... Kg6 {[%clk
0:00:14.9]} 44. h4 {[%clk 0:00:43.4]} 44... Re6# {[%clk 0:00:15.7]} 0-1

[Event "*** Titled Tuesday Blitz"]
[Site "Chess.com"]
[Date "2019.10.01"]
[Round "3"]
[White "kingofthenil"]
[Black "hansen"]
[Result "1-0"]
[WhiteElo "2555"]
[BlackElo "2776"]
[TimeControl "180+2"]
[EndTime "13:37:23 PDT"]
[Termination "kingofthenil won by resignation"]

1. d4 {[%clk 0:03:01.9]} 1... Nf6 {[%clk 0:03:00.9]} 2. c4 {[%clk 0:03:01.9]}
2... e6 {[%clk 0:03:02.3]} 3. Nc3 {[%clk 0:03:01.6]} 3... Bb4 {[%clk 0:03:03.9]}
4. a3 {[%clk 0:03:02.8]} 4... O-O {[%clk 0:03:05.6]} 5. axb4 {[%clk 0:03:03.2]}
5... d6 {[%clk 0:03:05.8]} 6. e4 {[%clk 0:03:03.5]} 6... Nbd7 {[%clk 0:03:05.7]}
7. Nf3 {[%clk 0:03:02.2]} 7... e5 {[%clk 0:03:06.3]} 8. Be2 {[%clk 0:03:03.2]}
8... Re8 {[%clk 0:03:06.9]} 9. dxe5 {[%clk 0:02:59.5]} 9... dxe5 {[%clk
0:03:08]} 10. O-O {[%clk 0:03:00.4]} 10... h6 {[%clk 0:03:09.2]} 11. c5 {[%clk
0:03:00.5]} 11... c6 {[%clk 0:03:09.7]} 12. Bc4 {[%clk 0:02:59]} 12... Nh7
{[%clk 0:03:10.4]} 13. Qd6 {[%clk 0:02:58.6]} 13... a6 {[%clk 0:02:48.6]} 14.
Qg6 {[%clk 0:02:41.8]} 14... Qf6 {[%clk 0:02:41.2]} 15. Qxf6 {[%clk 0:02:33.1]}
15... Ndxf6 {[%clk 0:02:43.1]} 16. h3 {[%clk 0:02:33.1]} 16... Nf8 {[%clk
0:02:44.1]} 17. Rd1 {[%clk 0:02:32.5]} 17... g5 {[%clk 0:02:45]} 18. Be3 {[%clk
0:02:23.9]} 18... Kg7 {[%clk 0:02:44.9]} 19. Nd2 {[%clk 0:02:24.3]} 19... Ng6
{[%clk 0:02:45]} 20. Nb3 {[%clk 0:02:23.8]} 20... Rb8 {[%clk 0:02:43.8]} 21. Rd6
{[%clk 0:02:22.5]} 21... Nf4 {[%clk 0:02:40.1]} 22. Na5 {[%clk 0:02:18.6]} 22...
h5 {[%clk 0:02:26.7]} 23. Rad1 {[%clk 0:01:49.1]} 23... h4 {[%clk 0:02:22.2]}
24. Rd8 {[%clk 0:01:49.5]} 24... Be6 {[%clk 0:02:18.9]} 25. Bxe6 {[%clk
0:01:45.9]} 25... Nxe6 {[%clk 0:02:16.9]} 26. Rxe8 {[%clk 0:01:45.6]} 26... Nxe8
{[%clk 0:02:17.9]} 27. Rd7 {[%clk 0:01:44.9]} 27... N8c7 {[%clk 0:02:16.9]} 28.
Nd5 {[%clk 0:01:27.8]} 28... Nb5 {[%clk 0:02:12.5]} 29. Ne7 {[%clk 0:01:21.3]}
29... Kf8 {[%clk 0:02:12.8]} 30. Nf5 {[%clk 0:01:17.9]} 30... Nbc7 {[%clk
0:02:08.2]} 31. Nd6 {[%clk 0:01:18.4]} 31... f6 {[%clk 0:01:53.2]} 32. Naxb7
{[%clk 0:01:10.1]} 32... Ne8 {[%clk 0:01:46.4]} 33. Nxe8 {[%clk 0:01:07.5]}
33... Kxe8 {[%clk 0:01:42.6]} 34. Rh7 {[%clk 0:01:06.3]} 34... Nf8 {[%clk
0:01:40.4]} 35. Nd6+ {[%clk 0:01:07.5]} 35... Kd8 {[%clk 0:01:41.6]} 36. Rb7
{[%clk 0:01:08.4]} 36... Rxb7 {[%clk 0:01:26.4]} 37. Nxb7+ {[%clk 0:01:10.3]}
37... Kd7 {[%clk 0:01:28]} 38. Nd6 {[%clk 0:01:08.9]} 38... Ne6 {[%clk
0:01:29.9]} 39. Kf1 {[%clk 0:01:09.1]} 39... Nc7 {[%clk 0:01:26.2]} 40. Ke2
{[%clk 0:01:09.8]} 40... Ke6 {[%clk 0:01:28.1]} 41. Kf3 {[%clk 0:01:10.4]} 41...
Na8 {[%clk 0:01:25.5]} 42. Ke2 {[%clk 0:01:11.3]} 42... Nc7 {[%clk 0:01:26.9]}
43. Kd3 {[%clk 0:01:12.6]} 43... Kd7 {[%clk 0:01:23.9]} 44. Kc4 {[%clk
0:01:13.8]} 44... Ne6 {[%clk 0:01:25.2]} 45. f3 {[%clk 0:01:12.7]} 45... Ng7
{[%clk 0:01:24.6]} 46. Kb3 {[%clk 0:01:13.9]} 46... Kc7 {[%clk 0:00:58.7]} 47.
Ka4 {[%clk 0:01:13]} 47... Kb8 {[%clk 0:01:00.1]} 48. Ka5 {[%clk 0:01:13.2]}
48... Ka7 {[%clk 0:01:01.8]} 49. Bd2 {[%clk 0:01:05.5]} 49... Ne6 {[%clk
0:00:59.9]} 50. Be3 {[%clk 0:01:01.9]} 50... Ng7 {[%clk 0:00:59.7]} 51. b3
{[%clk 0:01:02.7]} 51... Ne6 {[%clk 0:00:57.8]} 52. Ne8 {[%clk 0:01:01.6]} 52...
Nd4 {[%clk 0:00:59]} 53. Bxd4 {[%clk 0:00:59.8]} 53... exd4 {[%clk 0:00:59.4]}
54. Nd6 {[%clk 0:01:00.5]} 54... d3 {[%clk 0:00:57]} 55. Nc4 {[%clk 0:01:01.5]}
55... Kb7 {[%clk 0:00:58.5]} 56. Ka4 {[%clk 0:01:01.4]} 56... Kc7 {[%clk
0:00:59]} 57. Ka3 {[%clk 0:01:02.5]} 57... Kd7 {[%clk 0:01:00.9]} 58. Kb2 {[%clk
0:01:03.5]} 58... Ke6 {[%clk 0:01:02.1]} 59. Kc3 {[%clk 0:01:04.4]} 59... f5
{[%clk 0:01:04]} 60. Kxd3 {[%clk 0:01:05.1]} 1-0